[Event "*** Titled Tuesday Blitz"]
[Site "Chess.com"]
[Date "2021.02.02"]
[Round "2"]
[White "mishanick"]
[Black "Philosopherrr"]
[Result "1-0"]
[WhiteElo "2880"]
[BlackElo "2561"]
[TimeControl "180+1"]
[EndTime "10:20:31 PST"]
[Termination "mishanick won by resignation"]

1. e4 {[%clk 0:03:00.9]} 1... e5 {[%clk 0:02:59.2]} 2. Nf3 {[%clk 0:03:01.3]}
2... Nc6 {[%clk 0:02:58.2]} 3. Bb5 {[%clk 0:03:01.7]} 3... a6 {[%clk 0:02:58.3]}
4. Ba4 {[%clk 0:03:02.2]} 4... Nf6 {[%clk 0:02:58.8]} 5. O-O {[%clk 0:03:02.3]}
5... Be7 {[%clk 0:02:58.8]} 6. Re1 {[%clk 0:03:01.8]} 6... b5 {[%clk 0:02:59.4]}
7. Bb3 {[%clk 0:03:02.4]} 7... d6 {[%clk 0:03:00.3]} 8. c3 {[%clk 0:03:02.9]}
8... O-O {[%clk 0:03:00.9]} 9. d4 {[%clk 0:03:03.6]} 9... Bg4 {[%clk 0:03:00.5]}
10. Be3 {[%clk 0:03:01.7]} 10... Bh5 {[%clk 0:03:00.7]} 11. Nbd2 {[%clk
0:03:00.5]} 11... exd4 {[%clk 0:02:59.8]} 12. cxd4 {[%clk 0:03:00.1]} 12... Na5
{[%clk 0:03:00.1]} 13. Bc2 {[%clk 0:02:58.2]} 13... c5 {[%clk 0:03:00.4]} 14.
dxc5 {[%clk 0:02:55.5]} 14... dxc5 {[%clk 0:03:00.1]} 15. h3 {[%clk 0:02:56]}
15... Qc7 {[%clk 0:02:45.3]} 16. Rc1 {[%clk 0:02:53.4]} 16... Rad8 {[%clk
0:02:42.8]} 17. Qe2 {[%clk 0:02:52.1]} 17... Rfe8 {[%clk 0:02:37.1]} 18. Bg5
{[%clk 0:02:47.7]} 18... Nc6 {[%clk 0:02:14.8]} 19. Qe3 {[%clk 0:02:45.3]} 19...
Bg6 {[%clk 0:02:00.8]} 20. Bb1 {[%clk 0:02:34.3]} 20... c4 {[%clk 0:01:49.2]}
21. Bf4 {[%clk 0:02:12.9]} 21... Qa5 {[%clk 0:01:38.9]} 22. a3 {[%clk
0:02:03.8]} 22... Bf8 {[%clk 0:01:24]} 23. Bg3 {[%clk 0:01:48.1]} 23... Nd5
{[%clk 0:01:13.7]} 24. Qg5 {[%clk 0:01:46.6]} 24... h6 {[%clk 0:01:13.1]} 25.
Qg4 {[%clk 0:01:42.9]} 25... Nf6 {[%clk 0:01:11]} 26. Qf4 {[%clk 0:01:34.8]}
26... Nh5 {[%clk 0:01:07.7]} 27. Qc7 {[%clk 0:01:34.8]} 27... Nxg3 {[%clk
0:01:07.6]} 28. Qxc6 {[%clk 0:01:32.1]} 28... Nh5 {[%clk 0:00:43.8]} 29. Nf1
{[%clk 0:01:19.2]} 29... Nf4 {[%clk 0:00:39.2]} 30. e5 {[%clk 0:01:14.6]} 30...
Nd3 {[%clk 0:00:38.4]} 31. Bxd3 {[%clk 0:01:12.9]} 31... Bxd3 {[%clk 0:00:38.3]}
32. Ng3 {[%clk 0:01:04.6]} 32... Re6 {[%clk 0:00:37.4]} 33. Qb7 {[%clk
0:01:04.5]} 33... Qb6 {[%clk 0:00:35.5]} 34. Qxb6 {[%clk 0:01:01.3]} 34... Rxb6
{[%clk 0:00:36]} 35. Ne4 {[%clk 0:00:49.6]} 35... Re6 {[%clk 0:00:33.4]} 36. Re3
{[%clk 0:00:46.4]} 36... f5 {[%clk 0:00:29.3]} 37. Nc3 {[%clk 0:00:43.7]} 37...
Bc5 {[%clk 0:00:27.7]} 38. Ree1 {[%clk 0:00:43.4]} 38... g5 {[%clk 0:00:26.1]}
39. Rcd1 {[%clk 0:00:22.3]} 39... g4 {[%clk 0:00:26.1]} 40. hxg4 {[%clk
0:00:21.8]} 40... fxg4 {[%clk 0:00:26.3]} 41. Nh4 {[%clk 0:00:22.5]} 41... Rf8
{[%clk 0:00:25.5]} 42. Rd2 {[%clk 0:00:13]} 42... Rxf2 {[%clk 0:00:20.4]} 43.
Rxf2 {[%clk 0:00:12.5]} 43... g3 {[%clk 0:00:20.8]} 44. Nd1 {[%clk 0:00:13.2]}
44... gxf2+ {[%clk 0:00:19.6]} 45. Nxf2 {[%clk 0:00:14.1]} 45... Re8 {[%clk
0:00:17.4]} 46. Nf3 {[%clk 0:00:14.5]} 46... Rf8 {[%clk 0:00:17.5]} 47. e6
{[%clk 0:00:14.2]} 47... Kg7 {[%clk 0:00:17.3]} 48. Re5 {[%clk 0:00:14.1]} 48...
Bd6 {[%clk 0:00:16.8]} 49. Rd5 {[%clk 0:00:13.7]} 49... Bg3 {[%clk 0:00:14.1]}
50. Nxd3 {[%clk 0:00:13.8]} 50... cxd3 {[%clk 0:00:14.6]} 51. Rxd3 {[%clk
0:00:14.4]} 51... Rc8 {[%clk 0:00:14.5]} 52. Kf1 {[%clk 0:00:14.3]} 52... Rc6
{[%clk 0:00:13.9]} 53. Nd4 {[%clk 0:00:14]} 53... Rc1+ {[%clk 0:00:12.8]} 54.
Ke2 {[%clk 0:00:14.7]} 54... Bb8 {[%clk 0:00:11]} 55. e7 {[%clk 0:00:14.5]}
55... Re1+ {[%clk 0:00:10.1]} 56. Kxe1 {[%clk 0:00:14.1]} 1-0

[Event "*** Titled Tuesday Blitz"]
[Site "Chess.com"]
[Date "2021.02.02"]
[Round "2"]
[White "Machidon"]
[Black "NodariousBIG"]
[Result "1-0"]
[WhiteElo "2533"]
[BlackElo "2760"]
[TimeControl "180+1"]
[EndTime "10:20:34 PST"]
[Termination "Machidon won by resignation"]

1. d4 {[%clk 0:03:00.9]} 1... e6 {[%clk 0:03:00.1]} 2. e4 {[%clk 0:02:59.9]}
2... d5 {[%clk 0:02:59.7]} 3. Nc3 {[%clk 0:03:00.4]} 3... Nf6 {[%clk 0:02:58.3]}
4. e5 {[%clk 0:03:00.8]} 4... Nfd7 {[%clk 0:02:57.6]} 5. Nce2 {[%clk 0:03:01.4]}
5... c5 {[%clk 0:02:58.2]} 6. c3 {[%clk 0:03:01.8]} 6... b5 {[%clk 0:02:58.7]}
7. a3 {[%clk 0:03:00.9]} 7... b4 {[%clk 0:02:53.3]} 8. axb4 {[%clk 0:02:59.9]}
8... cxb4 {[%clk 0:02:53.5]} 9. Nf3 {[%clk 0:03:00]} 9... bxc3 {[%clk
0:02:53.2]} 10. bxc3 {[%clk 0:03:00.9]} 10... Be7 {[%clk 0:02:47.8]} 11. Nf4
{[%clk 0:02:59.7]} 11... Qc7 {[%clk 0:02:46.9]} 12. Bd3 {[%clk 0:02:51.4]} 12...
a5 {[%clk 0:02:45.1]} 13. O-O {[%clk 0:02:50.5]} 13... Ba6 {[%clk 0:02:45.1]}
14. Bxa6 {[%clk 0:02:38.1]} 14... Rxa6 {[%clk 0:02:43.5]} 15. Qd3 {[%clk
0:02:38.1]} 15... O-O {[%clk 0:02:33.2]} 16. h4 {[%clk 0:02:36.9]} 16... Qc4
{[%clk 0:02:29.3]} 17. Qxc4 {[%clk 0:02:29.2]} 17... dxc4 {[%clk 0:02:28.9]} 18.
Ba3 {[%clk 0:02:15.8]} 18... Bxa3 {[%clk 0:02:26.7]} 19. Rxa3 {[%clk 0:02:16.7]}
19... Nb6 {[%clk 0:02:25.2]} 20. Nd2 {[%clk 0:02:01.1]} 20... Nc6 {[%clk
0:02:18.6]} 21. Ne4 {[%clk 0:01:59.9]} 21... Nd5 {[%clk 0:02:09.9]} 22. Nxd5
{[%clk 0:01:58.7]} 22... exd5 {[%clk 0:02:10.7]} 23. Nc5 {[%clk 0:01:51.4]}
23... Raa8 {[%clk 0:01:59.1]} 24. f4 {[%clk 0:01:47.7]} 24... Rfb8 {[%clk
0:01:51.1]} 25. f5 {[%clk 0:01:44]} 25... Rb2 {[%clk 0:01:51.1]} 26. f6 {[%clk
0:01:40.2]} 26... Re2 {[%clk 0:01:28.8]} 27. fxg7 {[%clk 0:01:27.8]} 27... Rb8
{[%clk 0:01:26]} 28. Rf3 {[%clk 0:01:08.6]} 28... Kxg7 {[%clk 0:01:11.8]} 29.
Rg3+ {[%clk 0:01:07.3]} 29... Kh6 {[%clk 0:01:05.5]} 30. Ra1 {[%clk 0:01:00.6]}
30... Reb2 {[%clk 0:00:43.9]} 31. Kh2 {[%clk 0:00:48.4]} 31... Rb1 {[%clk
0:00:43.9]} 32. Ra3 {[%clk 0:00:39.1]} 32... R8b2 {[%clk 0:00:43.6]} 33. Rf3
{[%clk 0:00:37.5]} 33... Kg7 {[%clk 0:00:40.8]} 34. e6 {[%clk 0:00:32.2]} 34...
fxe6 {[%clk 0:00:37.8]} 35. Nxe6+ {[%clk 0:00:33.1]} 35... Kh6 {[%clk
0:00:34.9]} 36. Rf6+ {[%clk 0:00:25.6]} 36... Kh5 {[%clk 0:00:34.2]} 37. Kg3
{[%clk 0:00:21.4]} 37... Rxg2+ {[%clk 0:00:17.9]} 38. Kxg2 {[%clk 0:00:20.2]}
38... Kxh4 {[%clk 0:00:18.8]} 39. Nf4 {[%clk 0:00:15]} 39... Kg5 {[%clk
0:00:17.9]} 40. Rxc6 {[%clk 0:00:14.6]} 40... Kxf4 {[%clk 0:00:17.8]} 41. Rxa5
{[%clk 0:00:15.2]} 41... Ke4 {[%clk 0:00:18.6]} 42. Re6+ {[%clk 0:00:14.1]}
42... Kd3 {[%clk 0:00:19.5]} 43. Rxd5 {[%clk 0:00:14.4]} 43... Kxc3 {[%clk
0:00:20.4]} 44. Rc6 {[%clk 0:00:14.8]} 44... Kd3 {[%clk 0:00:20.1]} 45. Rdc5
{[%clk 0:00:13.8]} 45... Rc1 {[%clk 0:00:19.7]} 46. d5 {[%clk 0:00:14.1]} 46...
c3 {[%clk 0:00:19.9]} 47. d6 {[%clk 0:00:14.5]} 47... Ke4 {[%clk 0:00:20.1]} 48.
Rxc3 {[%clk 0:00:13.9]} 48... Rd1 {[%clk 0:00:20.1]} 49. R3c4+ {[%clk
0:00:13.4]} 49... Ke5 {[%clk 0:00:20.3]} 50. R4c5+ {[%clk 0:00:13.2]} 50... Ke6
{[%clk 0:00:20.6]} 51. Kf2 {[%clk 0:00:13.1]} 51... Rd3 {[%clk 0:00:19.6]} 52.
Ke2 {[%clk 0:00:13.1]} 52... Rd4 {[%clk 0:00:20]} 53. Ke3 {[%clk 0:00:13.5]}
53... Rd1 {[%clk 0:00:20.5]} 54. Rc1 {[%clk 0:00:13.5]} 54... Rxd6 {[%clk
0:00:20.2]} 55. Rxd6+ {[%clk 0:00:13.5]} 55... Kxd6 {[%clk 0:00:20]} 56. Rh1
{[%clk 0:00:14.4]} 56... h5 {[%clk 0:00:20.3]} 57. Rxh5 {[%clk 0:00:14.5]} 1-0

[Event "*** Titled Tuesday Blitz"]
[Site "Chess.com"]
[Date "2021.02.02"]
[Round "2"]
[White "RobertoJBM"]
[Black "konradrutkowski"]
[Result "1/2-1/2"]
[WhiteElo "2790"]
[BlackElo "2435"]
[TimeControl "180+1"]
[EndTime "10:20:36 PST"]
[Termination "Game drawn by repetition"]

1. d4 {[%clk 0:03:00.9]} 1... Nf6 {[%clk 0:02:59]} 2. Nf3 {[%clk 0:03:00.3]}
2... g6 {[%clk 0:02:58.8]} 3. e3 {[%clk 0:03:01.2]} 3... Bg7 {[%clk 0:02:58.4]}
4. Be2 {[%clk 0:02:57.2]} 4... O-O {[%clk 0:02:58]} 5. O-O {[%clk 0:02:57.2]}
5... d6 {[%clk 0:02:57.5]} 6. c4 {[%clk 0:02:56.6]} 6... c5 {[%clk 0:02:46.9]}
7. d5 {[%clk 0:02:55.2]} 7... e6 {[%clk 0:02:39.1]} 8. Nc3 {[%clk 0:02:54.1]}
8... exd5 {[%clk 0:02:38.2]} 9. cxd5 {[%clk 0:02:53.8]} 9... Na6 {[%clk
0:02:32.3]} 10. Re1 {[%clk 0:02:52.3]} 10... Nc7 {[%clk 0:02:29.1]} 11. a4
{[%clk 0:02:52]} 11... Re8 {[%clk 0:02:27.8]} 12. Bc4 {[%clk 0:02:49.6]} 12...
Bf5 {[%clk 0:02:07.2]} 13. Nd2 {[%clk 0:02:41.4]} 13... Ng4 {[%clk 0:01:32.2]}
14. Nf3 {[%clk 0:02:20.9]} 14... Nf6 {[%clk 0:01:29.1]} 15. h3 {[%clk
0:02:18.2]} 15... Ne4 {[%clk 0:01:27.5]} 16. Nxe4 {[%clk 0:02:16.8]} 16... Bxe4
{[%clk 0:01:27.5]} 17. a5 {[%clk 0:01:48.4]} 17... Qf6 {[%clk 0:01:25.2]} 18.
Nd2 {[%clk 0:01:35.8]} 18... Bxd5 {[%clk 0:01:23.9]} 19. Bxd5 {[%clk 0:01:34.6]}
19... Nxd5 {[%clk 0:01:24.8]} 20. Nc4 {[%clk 0:01:34.5]} 20... Nb4 {[%clk
0:01:22.1]} 21. e4 {[%clk 0:01:11.9]} 21... d5 {[%clk 0:01:16.6]} 22. Nd2 {[%clk
0:01:04.6]} 22... Nd3 {[%clk 0:01:13.6]} 23. Re2 {[%clk 0:01:04.4]} 23... Nxc1
{[%clk 0:00:48.9]} 24. Rxc1 {[%clk 0:01:01.4]} 24... b6 {[%clk 0:00:48]} 25.
axb6 {[%clk 0:00:56.4]} 25... axb6 {[%clk 0:00:48.9]} 26. exd5 {[%clk
0:00:55.8]} 26... Rxe2 {[%clk 0:00:47.5]} 27. Qxe2 {[%clk 0:00:56.7]} 27... Qxb2
{[%clk 0:00:47.6]} 28. Rb1 {[%clk 0:00:53.6]} 28... Qc2 {[%clk 0:00:42.7]} 29.
d6 {[%clk 0:00:33.1]} 29... Bc3 {[%clk 0:00:19.4]} 30. Rd1 {[%clk 0:00:14.5]}
30... Qf5 {[%clk 0:00:07.9]} 31. Ne4 {[%clk 0:00:12.2]} 31... Bd4 {[%clk
0:00:07.7]} 32. g4 {[%clk 0:00:09]} 32... Qf4 {[%clk 0:00:05.6]} 33. Kg2 {[%clk
0:00:09.1]} 33... Kg7 {[%clk 0:00:05.7]} 34. Rd3 {[%clk 0:00:08.5]} 34... Re8
{[%clk 0:00:05.7]} 35. f3 {[%clk 0:00:07.8]} 35... Rxe4 {[%clk 0:00:04.8]} 36.
Qxe4 {[%clk 0:00:06.1]} 36... Qxd6 {[%clk 0:00:05.7]} 37. f4 {[%clk 0:00:06.5]}
37... b5 {[%clk 0:00:05.7]} 38. f5 {[%clk 0:00:06.4]} 38... gxf5 {[%clk
0:00:04.9]} 39. gxf5 {[%clk 0:00:07.3]} 39... Kf6 {[%clk 0:00:04.5]} 40. Qh4+
{[%clk 0:00:06.3]} 40... Kg7 {[%clk 0:00:04.3]} 41. Rg3+ {[%clk 0:00:06]} 41...
Kf8 {[%clk 0:00:04.6]} 42. Qxh7 {[%clk 0:00:05.3]} 42... Qd5+ {[%clk 0:00:04.2]}
43. Kh2 {[%clk 0:00:03.7]} 43... Qa2+ {[%clk 0:00:04.3]} 44. Rg2 {[%clk
0:00:03.5]} 44... Be5+ {[%clk 0:00:04.4]} 45. Kh1 {[%clk 0:00:04.4]} 45... Qb1+
{[%clk 0:00:04.6]} 46. Rg1 {[%clk 0:00:04.8]} 46... Qe4+ {[%clk 0:00:04.6]} 47.
Rg2 {[%clk 0:00:05.3]} 47... Qe1+ {[%clk 0:00:04.4]} 48. Rg1 {[%clk 0:00:05.8]}
48... Qe4+ {[%clk 0:00:04.3]} 49. Rg2 {[%clk 0:00:06.3]} 49... Qe1+ {[%clk
0:00:04.3]} 50. Rg1 {[%clk 0:00:06.8]} 50... Qe4+ {[%clk 0:00:04.6]} 1/2-1/2

[Event "*** Titled Tuesday Blitz"]
[Site "Chess.com"]
[Date "2021.02.02"]
[Round "2"]
[White "GM_dmitrij"]
[Black "Volodar_Murzin"]
[Result "0-1"]
[WhiteElo "2889"]
[BlackElo "2589"]
[TimeControl "180+1"]
[EndTime "10:20:37 PST"]
[Termination "Volodar_Murzin won by resignation"]

1. e4 {[%clk 0:03:00.9]} 1... c5 {[%clk 0:02:58.8]} 2. Nf3 {[%clk 0:03:00.9]}
2... d6 {[%clk 0:02:57.5]} 3. d4 {[%clk 0:03:00.7]} 3... cxd4 {[%clk 0:02:57.4]}
4. Nxd4 {[%clk 0:03:01.6]} 4... Nf6 {[%clk 0:02:57.2]} 5. Nc3 {[%clk 0:03:01.9]}
5... a6 {[%clk 0:02:55.1]} 6. g3 {[%clk 0:03:01.7]} 6... e5 {[%clk 0:02:54]} 7.
Nf3 {[%clk 0:03:01.6]} 7... Nbd7 {[%clk 0:02:52.8]} 8. a4 {[%clk 0:02:59.2]}
8... Be7 {[%clk 0:02:45.1]} 9. Bg2 {[%clk 0:02:57.2]} 9... O-O {[%clk 0:02:45]}
10. O-O {[%clk 0:02:57.8]} 10... b6 {[%clk 0:02:39.2]} 11. Nh4 {[%clk 0:02:54]}
11... g6 {[%clk 0:02:36.3]} 12. Bh6 {[%clk 0:02:53.6]} 12... Re8 {[%clk
0:02:34.5]} 13. h3 {[%clk 0:02:53.8]} 13... Bb7 {[%clk 0:02:33.4]} 14. Re1
{[%clk 0:02:53.2]} 14... Nc5 {[%clk 0:02:31.1]} 15. Bg5 {[%clk 0:02:45.6]} 15...
Ne6 {[%clk 0:01:45.2]} 16. Bxf6 {[%clk 0:02:41.8]} 16... Bxf6 {[%clk 0:01:46.1]}
17. Nf3 {[%clk 0:02:42.5]} 17... Rc8 {[%clk 0:01:28.4]} 18. Re2 {[%clk
0:02:35.8]} 18... Nd4 {[%clk 0:01:18.5]} 19. Nxd4 {[%clk 0:02:33.5]} 19... exd4
{[%clk 0:01:19.4]} 20. Nd5 {[%clk 0:02:34.4]} 20... Bxd5 {[%clk 0:01:15.9]} 21.
exd5 {[%clk 0:02:35.3]} 21... Rxe2 {[%clk 0:00:51.8]} 22. Qxe2 {[%clk
0:02:36.2]} 22... d3 {[%clk 0:00:51.4]} 23. Qxd3 {[%clk 0:02:36.1]} 23... Bxb2
{[%clk 0:00:50.2]} 24. Rb1 {[%clk 0:02:36.4]} 24... Qf6 {[%clk 0:00:45.2]} 25.
Kh2 {[%clk 0:01:25.2]} 25... Bd4 {[%clk 0:00:26.9]} 26. f4 {[%clk 0:01:24.7]}
26... a5 {[%clk 0:00:26.7]} 27. c4 {[%clk 0:01:19.1]} 27... Re8 {[%clk
0:00:24.7]} 28. Rd1 {[%clk 0:00:47.5]} 28... Bc5 {[%clk 0:00:24.1]} 29. Qd2
{[%clk 0:00:48]} 29... Re7 {[%clk 0:00:21.7]} 30. Qc1 {[%clk 0:00:36.3]} 30...
Bb4 {[%clk 0:00:19.7]} 31. Rd3 {[%clk 0:00:34.7]} 31... Re2 {[%clk 0:00:18.7]}
32. h4 {[%clk 0:00:28.2]} 32... Qf5 {[%clk 0:00:16.2]} 33. Rf3 {[%clk 0:00:22]}
33... Qe4 {[%clk 0:00:14.8]} 34. Qf1 {[%clk 0:00:20.8]} 34... Re1 {[%clk
0:00:13.3]} 35. Qd3 {[%clk 0:00:20.7]} 35... Qe7 {[%clk 0:00:11.9]} 36. Kh3
{[%clk 0:00:17.8]} 36... Bc5 {[%clk 0:00:10.4]} 37. f5 {[%clk 0:00:17.7]} 37...
Re5 {[%clk 0:00:07.4]} 38. Kh2 {[%clk 0:00:16.7]} 38... g5 {[%clk 0:00:06.4]}
39. f6 {[%clk 0:00:16.6]} 39... Qd7 {[%clk 0:00:06.4]} 40. Bh3 {[%clk
0:00:16.2]} 40... g4 {[%clk 0:00:06.9]} 41. Qd2 {[%clk 0:00:12.3]} 41... gxf3
{[%clk 0:00:05]} 42. Bf1 {[%clk 0:00:04.6]} 42... Qg4 {[%clk 0:00:03.5]} 43. Qh6
{[%clk 0:00:03.1]} 43... Qg6 {[%clk 0:00:03.5]} 44. Qf4 {[%clk 0:00:02.7]} 44...
Rf5 {[%clk 0:00:03.4]} 45. Qe4 {[%clk 0:00:02.8]} 45... Qxf6 {[%clk 0:00:04.3]}
46. Qe8+ {[%clk 0:00:02.9]} 46... Kg7 {[%clk 0:00:04.1]} 47. Qe4 {[%clk
0:00:03.8]} 47... Re5 {[%clk 0:00:04.5]} 48. Qg4+ {[%clk 0:00:04.1]} 48... Qg6
{[%clk 0:00:04.6]} 49. Qh3 {[%clk 0:00:05]} 49... Re3 {[%clk 0:00:04.9]} 50. h5
{[%clk 0:00:05.3]} 50... Qg5 {[%clk 0:00:04.9]} 51. Kh1 {[%clk 0:00:05.4]} 51...
f2 {[%clk 0:00:05.3]} 52. Qg2 {[%clk 0:00:05.3]} 52... Qxh5+ {[%clk 0:00:05.3]}
53. Qh2 {[%clk 0:00:05.7]} 53... Qxh2+ {[%clk 0:00:05.8]} 54. Kxh2 {[%clk
0:00:06.6]} 54... Re1 {[%clk 0:00:06.4]} 55. Kg2 {[%clk 0:00:07.5]} 55... Rxf1
{[%clk 0:00:07.3]} 0-1

[Event "*** Titled Tuesday Blitz"]
[Site "Chess.com"]
[Date "2021.02.02"]
[Round "2"]
[White "OhanyanEminChess"]
[Black "A-S-00"]
[Result "1-0"]
[WhiteElo "2646"]
[BlackElo "2334"]
[TimeControl "180+1"]
[EndTime "10:20:38 PST"]
[Termination "OhanyanEminChess won on time"]

1. e4 {[%clk 0:03:00.9]} 1... c5 {[%clk 0:02:59.3]} 2. Nf3 {[%clk 0:02:59.4]}
2... Nc6 {[%clk 0:02:58.2]} 3. Nc3 {[%clk 0:02:58.9]} 3... e6 {[%clk 0:02:51.8]}
4. d4 {[%clk 0:02:58]} 4... cxd4 {[%clk 0:02:52.1]} 5. Nxd4 {[%clk 0:02:58.9]}
5... Nf6 {[%clk 0:02:52.3]} 6. Ndb5 {[%clk 0:02:54]} 6... Bb4 {[%clk 0:02:50.7]}
7. a3 {[%clk 0:02:52.2]} 7... Bxc3+ {[%clk 0:02:50.8]} 8. Nxc3 {[%clk
0:02:53.1]} 8... d5 {[%clk 0:02:51.4]} 9. exd5 {[%clk 0:02:53.2]} 9... exd5
{[%clk 0:02:52.3]} 10. Bd3 {[%clk 0:02:52.7]} 10... O-O {[%clk 0:02:52.6]} 11.
O-O {[%clk 0:02:53.2]} 11... Bg4 {[%clk 0:02:53.1]} 12. Qd2 {[%clk 0:02:52.8]}
12... h6 {[%clk 0:02:39.9]} 13. Qf4 {[%clk 0:02:50.6]} 13... Re8 {[%clk
0:02:33.9]} 14. Qg3 {[%clk 0:02:45.4]} 14... Ne5 {[%clk 0:02:31]} 15. Bf4 {[%clk
0:02:37.3]} 15... Nh5 {[%clk 0:02:22]} 16. Bxe5 {[%clk 0:02:37.9]} 16... Nxg3
{[%clk 0:02:21.7]} 17. Bxg3 {[%clk 0:02:38.8]} 17... Be6 {[%clk 0:02:17]} 18.
Nb5 {[%clk 0:02:26.7]} 18... Rf8 {[%clk 0:02:05.9]} 19. Nc7 {[%clk 0:02:20.5]}
19... Rc8 {[%clk 0:02:04.8]} 20. Nxe6 {[%clk 0:02:21.1]} 20... fxe6 {[%clk
0:02:05.2]} 21. Rfe1 {[%clk 0:02:20.7]} 21... Qe7 {[%clk 0:01:58.7]} 22. Re2
{[%clk 0:02:17.5]} 22... Qf7 {[%clk 0:01:54.8]} 23. Rae1 {[%clk 0:02:11]} 23...
Rc6 {[%clk 0:01:54.4]} 24. Be5 {[%clk 0:01:58.1]} 24... a6 {[%clk 0:01:51.4]}
25. f4 {[%clk 0:01:40.4]} 25... b5 {[%clk 0:01:36.7]} 26. Re3 {[%clk 0:01:39.4]}
26... Qd7 {[%clk 0:01:22.5]} 27. Rg3 {[%clk 0:01:36.6]} 27... Rf7 {[%clk
0:01:17.5]} 28. Rg6 {[%clk 0:01:30.3]} 28... Rc8 {[%clk 0:01:10]} 29. Re3 {[%clk
0:01:27.5]} 29... d4 {[%clk 0:01:06.5]} 30. Rh3 {[%clk 0:01:03.3]} 30... Kf8
{[%clk 0:00:59.5]} 31. Rhg3 {[%clk 0:00:55.7]} 31... a5 {[%clk 0:00:57.9]} 32.
h4 {[%clk 0:00:52.5]} 32... b4 {[%clk 0:00:55.2]} 33. axb4 {[%clk 0:00:44]}
33... axb4 {[%clk 0:00:56.1]} 34. Kh2 {[%clk 0:00:41.7]} 34... Ra8 {[%clk
0:00:52.4]} 35. Bc4 {[%clk 0:00:35.7]} 35... Re7 {[%clk 0:00:40]} 36. f5 {[%clk
0:00:19.4]} 36... exf5 {[%clk 0:00:35.1]} 37. Rxh6 {[%clk 0:00:19.8]} 37... Rxe5
{[%clk 0:00:18.1]} 38. Rh8+ {[%clk 0:00:20.1]} 38... Ke7 {[%clk 0:00:18.2]} 39.
Rxa8 {[%clk 0:00:17.1]} 39... Qc6 {[%clk 0:00:12.3]} 40. Rxg7+ {[%clk
0:00:13.6]} 40... Kf6 {[%clk 0:00:11.2]} 41. Rf7+ {[%clk 0:00:13.3]} 41... Kg6
{[%clk 0:00:10.4]} 42. Rg8+ {[%clk 0:00:10.1]} 42... Kh6 {[%clk 0:00:04.8]} 43.
Bd3 {[%clk 0:00:06.9]} 43... Re6 {[%clk 0:00:01.8]} 44. Rxf5 {[%clk 0:00:05]}
44... Qd6+ {[%clk 0:00:02.2]} 45. Kh3 {[%clk 0:00:03.6]} 45... Re1 {[%clk
0:00:03.1]} 46. Rgg5 {[%clk 0:00:02]} 1-0

[Event "*** Titled Tuesday Blitz"]
[Site "Chess.com"]
[Date "2021.02.02"]
[Round "2"]
[White "oneshot007"]
[Black "Forantes"]
[Result "0-1"]
[WhiteElo "2451"]
[BlackElo "2272"]
[TimeControl "180+1"]
[EndTime "10:20:39 PST"]
[Termination "Forantes won by resignation"]

1. e4 {[%clk 0:03:00.9]} 1... c5 {[%clk 0:02:57.9]} 2. Nf3 {[%clk 0:03:01.2]}
2... Nc6 {[%clk 0:02:56.4]} 3. d4 {[%clk 0:03:01.6]} 3... cxd4 {[%clk
0:02:56.4]} 4. Nxd4 {[%clk 0:03:02.5]} 4... e5 {[%clk 0:02:43.4]} 5. Nb5 {[%clk
0:03:02.1]} 5... a6 {[%clk 0:02:42.7]} 6. Nd6+ {[%clk 0:02:53.2]} 6... Bxd6
{[%clk 0:02:42.3]} 7. Qxd6 {[%clk 0:02:54.1]} 7... Qf6 {[%clk 0:02:42.4]} 8. Qd1
{[%clk 0:02:53.8]} 8... Qg6 {[%clk 0:02:40.8]} 9. Nc3 {[%clk 0:02:48.2]} 9... d5
{[%clk 0:02:40.2]} 10. Nxd5 {[%clk 0:02:17.6]} 10... Qxe4+ {[%clk 0:02:38.9]}
11. Be3 {[%clk 0:02:17.6]} 11... Nd4 {[%clk 0:02:35.8]} 12. Nc7+ {[%clk
0:02:04.9]} 12... Ke7 {[%clk 0:02:35.5]} 13. Rc1 {[%clk 0:01:50]} 13... Bg4
{[%clk 0:02:27.2]} 14. Qd3 {[%clk 0:01:47.2]} 14... Qxd3 {[%clk 0:02:05.3]} 15.
Bxd3 {[%clk 0:01:45.5]} 15... Rc8 {[%clk 0:02:05.7]} 16. Nd5+ {[%clk 0:01:44.9]}
16... Ke6 {[%clk 0:01:46]} 17. Nc3 {[%clk 0:01:30.6]} 17... Bf5 {[%clk
0:00:46.1]} 18. Ne4 {[%clk 0:01:03.2]} 18... Bxe4 {[%clk 0:00:20.8]} 19. Bxe4
{[%clk 0:01:03.3]} 19... f5 {[%clk 0:00:19.8]} 20. Bxb7 {[%clk 0:01:03.5]} 20...
Rxc2 {[%clk 0:00:20.3]} 21. Rxc2 {[%clk 0:00:52]} 21... Nxc2+ {[%clk 0:00:20.4]}
22. Kd2 {[%clk 0:00:52.7]} 22... Nxe3 {[%clk 0:00:20.2]} 23. Kxe3 {[%clk
0:00:53.6]} 23... a5 {[%clk 0:00:18.2]} 24. Rc1 {[%clk 0:00:46]} 24... Ne7
{[%clk 0:00:18.7]} 25. b3 {[%clk 0:00:39.1]} 25... Rb8 {[%clk 0:00:16.3]} 26.
Ba6 {[%clk 0:00:39.5]} 26... Nd5+ {[%clk 0:00:15.1]} 27. Kd2 {[%clk 0:00:38.6]}
27... Nb4 {[%clk 0:00:09.2]} 28. Bc4+ {[%clk 0:00:37.8]} 28... Kf6 {[%clk
0:00:09.3]} 29. a3 {[%clk 0:00:37.7]} 29... Rd8+ {[%clk 0:00:09.8]} 30. Ke2
{[%clk 0:00:36]} 30... Nc6 {[%clk 0:00:08.5]} 31. g3 {[%clk 0:00:31.1]} 31...
Nd4+ {[%clk 0:00:08.6]} 32. Ke3 {[%clk 0:00:30.8]} 32... Rb8 {[%clk 0:00:07.3]}
33. Rc3 {[%clk 0:00:29.3]} 33... g5 {[%clk 0:00:06.4]} 34. Kd2 {[%clk
0:00:26.9]} 34... e4 {[%clk 0:00:05.3]} 35. Kc1 {[%clk 0:00:26.8]} 35... Ke5
{[%clk 0:00:05.7]} 36. Kb2 {[%clk 0:00:27.1]} 36... a4 {[%clk 0:00:05.6]} 37. b4
{[%clk 0:00:26.4]} 37... Rd8 {[%clk 0:00:03.5]} 38. Ba2 {[%clk 0:00:17.4]} 38...
Nf3 {[%clk 0:00:03.9]} 39. Rc5+ {[%clk 0:00:14.5]} 39... Kf6 {[%clk 0:00:04.5]}
40. Rc2 {[%clk 0:00:12.4]} 40... Nxh2 {[%clk 0:00:04.4]} 41. Bc4 {[%clk
0:00:12.4]} 41... Nf3 {[%clk 0:00:04.7]} 42. Bb5 {[%clk 0:00:12.7]} 42... Nd4
{[%clk 0:00:05.3]} 43. Rd2 {[%clk 0:00:11.1]} 43... Ke5 {[%clk 0:00:02.7]} 44.
Bxa4 {[%clk 0:00:11.3]} 44... h5 {[%clk 0:00:03.3]} 45. Bd1 {[%clk 0:00:11.5]}
45... h4 {[%clk 0:00:03.7]} 46. a4 {[%clk 0:00:11.8]} 46... h3 {[%clk
0:00:03.7]} 47. a5 {[%clk 0:00:10.7]} 47... h2 {[%clk 0:00:02.5]} 48. f4+ {[%clk
0:00:11.3]} 48... gxf4 {[%clk 0:00:03]} 49. Rxh2 {[%clk 0:00:11.8]} 49... f3
{[%clk 0:00:02.8]} 50. Rd2 {[%clk 0:00:09.3]} 50... e3 {[%clk 0:00:03.4]} 51.
Bxf3 {[%clk 0:00:09.2]} 51... exd2 {[%clk 0:00:03.4]} 52. a6 {[%clk 0:00:06.6]}
52... Nxf3 {[%clk 0:00:03.7]} 53. a7 {[%clk 0:00:06.6]} 53... d1=Q {[%clk
0:00:04.3]} 0-1